bitfinex/quotes_SOLUSD_20220118
["timestamp","ask_amount","ask_price","bid_price","bid_amount"]
[1642539469094,17.165,137.49,137.42,11.1642]
[1642539469296,11.165,137.49,137.43,39.20858416]
[1642539469594,0.25,137.49,137.43,39.20858416]
[1642539470393,6.25,137.49,137.43,39.20858416]
[1642539470794,6.0,137.49,137.44,0.25]
[1642539470997,6.0,137.49,137.44,13.628]
[1642539471195,6.0,137.49,137.44,13.378]
[1642539471597,6.0,137.49,137.45,0.25]
[1642539471895,22.6081,137.5,137.45,0.25]
[1642539472098,10.9123,137.53,137.45,0.25]
[1642539472322,10.9123,137.53,137.47,40.73578843]
[1642539472496,6.0,137.52,137.46,2.908]
[1642539472696,19.8209,137.52,137.44,21.3829]
[1642539472996,19.8209,137.52,137.44,10.47]
[1642539473395,0.25,137.51,137.45,35.5982335]
[1642539473598,2.908,137.5,137.45,35.5982335]
[1642539473796,0.25,137.49,137.45,35.5982335]
[1642539474295,2.908,137.5,137.45,35.5982335]
[1642539474496,2.908,137.5,137.46,2.908]
[1642539474697,2.908,137.5,137.46,13.628]
[1642539475097,2.908,137.5,137.46,24.2891]
[1642539475697,2.908,137.53,137.46,21.3811]
[1642539476098,6.25,137.52,137.46,10.47]
[1642539476699,2.908,137.51,137.43,2.908]
[1642539476898,27.6964,137.51,137.43,2.908]
[1642539477100,6.25,137.5,137.43,2.908]
[1642539477301,2.908,137.49,137.43,2.908]
[1642539477501,6.0,137.48,137.43,2.908]
[1642539477701,10.9184,137.46,137.43,2.908]
[1642539477904,6.06439994,137.45,137.43,2.908]
[1642539478102,6.31439994,137.45,137.43,2.908]
[1642539478303,6.31439994,137.45,137.39,10.47]
[1642539478503,2.41,137.44,137.39,10.47]
[1642539478703,0.25,137.43,137.39,10.47]
[1642539478905,13.8307,137.42,137.39,10.47]
[1642539479104,6.06439994,137.41,137.36,10.47]
[1642539479303,6.31439994,137.41,137.36,10.47]
[1642539479504,2.911,137.4,137.36,10.47]
[1642539479836,0.25,137.41,137.36,10.47]
[1642539480013,11.1711,137.41,137.37,2.911]
[1642539480307,11.1711,137.41,137.36,10.47]
[1642539480510,11.1711,137.41,137.37,38.36539681]
[1642539480909,11.1711,137.41,137.36,10.47]
[1642539481812,11.1711,137.41,137.37,45.85453307]
[1642539482610,11.1711,137.41,137.37,48.76553307]
[1642539482811,0.25,137.41,137.37,48.76553307]
[1642539483009,0.25,137.41,137.37,45.85453307]
[1642539483611,6.25,137.43,137.37,45.85453307]
[1642539484414,10.9211,137.41,137.37,45.85453307]
[1642539484612,6.25,137.43,137.37,45.85453307]
[1642539485413,17.1703,137.43,137.36,10.47]
[1642539486415,23.30301055,137.43,137.36,10.47]
[1642539487949,17.1703,137.43,137.36,10.47]
[1642539488951,17.1703,137.43,137.37,35.99518278]
[1642539489549,17.1703,137.43,137.36,10.47]
[1642539489752,2.911,137.42,137.36,10.47]
[1642539489950,10.9216,137.41,137.36,10.47]
[1642539490153,11.1716,137.41,137.36,10.47]
[1642539496158,2.911,137.4,137.36,10.47]
[1642539496358,19.8336,137.4,137.36,10.47]
[1642539496558,0.25,137.39,137.36,10.47]
[1642539496759,6.06439994,137.38,137.36,10.47]
[1642539496958,0.25,137.39,137.36,10.47]
[1642539497660,2.911,137.42,137.36,10.47]
[1642539497859,24.1133,137.43,137.38,45.45466407]
[1642539498059,23.7006,137.45,137.39,2.911]
[1642539498461,23.7006,137.45,137.38,55.92466407]
[1642539498667,2.91,137.44,137.38,55.92466407]
[1642539498861,10.9199,137.43,137.38,55.92466407]
[1642539499461,0.25,137.42,137.38,55.92466407]
[1642539499865,10.9199,137.43,137.38,55.92466407]
[1642539500064,37.5303,137.45,137.38,55.92466407]
[1642539500263,37.5303,137.45,137.38,58.83466407]
[1642539500665,34.6193,137.45,137.38,58.83466407]
[1642539501464,34.6193,137.45,137.38,69.75266407]
[1642539501664,0.25,137.44,137.38,69.75266407]
[1642539501865,2.91,137.47,137.39,0.25]
[1642539502065,4.11225273,137.49,137.4,10.47]
[1642539502264,4.11225273,137.49,137.41,73.23]
[1642539502468,4.11225273,137.49,137.42,10.47]
[1642539502668,4.11225273,137.49,137.43,0.25]
[1642539502868,4.11225273,137.49,137.45,34.82313189]
[1642539503068,10.9124,137.52,137.45,45.29313189]
[1642539503366,27.38105273,137.53,137.45,53.37313189]
[1642539504168,27.38105273,137.53,137.46,2.908]
[1642539504468,23.2688,137.53,137.46,24.5397]
[1642539504970,0.25,137.52,137.46,24.5397]
[1642539506100,10.9116,137.53,137.46,24.5397]
[1642539506501,0.25,137.52,137.46,24.2897]
[1642539506902,11.1626,137.52,137.46,13.378]
[1642539509104,0.25,137.52,137.46,24.2897]
[1642539510407,11.1624,137.52,137.46,13.378]
[1642539510609,2.908,137.51,137.46,10.47]
[1642539510809,0.25,137.5,137.46,10.47]
[1642539512012,6.25,137.51,137.46,10.47]
[1642539512616,17.1632,137.51,137.46,10.47]
[1642539513816,23.51075418,137.51,137.46,10.47]
[1642539514013,13.8224,137.5,137.43,10.47]
[1642539514213,0.25,137.49,137.43,10.47]
[1642539514414,0.25,137.49,137.43,21.384]
[1642539515015,13.5724,137.5,137.43,21.384]
[1642539515215,10.9144,137.5,137.44,2.908]
[1642539515416,13.8224,137.5,137.45,10.47]
[1642539515815,2.908,137.5,137.45,10.47]
[1642539516216,2.908,137.5,137.46,0.25]
[1642539516418,2.908,137.5,137.47,10.47]
[1642539516618,2.908,137.5,137.48,2.908]
[1642539516820,2.908,137.5,137.49,48.38749434]
[1642539517117,2.908,137.5,137.49,48.63749434]
[1642539517354,2.908,137.5,137.49,48.38749434]
[1642539517917,3.03219997,137.5,137.48,13.378]
[1642539518121,0.25,137.49,137.48,2.908]
[1642539518520,0.25,137.49,137.45,10.47]
[1642539519320,0.25,137.51,137.45,10.47]
[1642539519519,2.908,137.5,137.45,10.47]
[1642539519719,0.25,137.49,137.45,10.47]
[1642539519920,2.908,137.48,137.41,16.47]
[1642539520120,6.0,137.47,137.41,10.47]
[1642539520323,2.91,137.46,137.41,10.47]
[1642539520622,10.9182,137.45,137.41,10.47]
[1642539520822,11.1682,137.45,137.41,10.47]
[1642539521622,0.25,137.45,137.41,10.47]
[1642539522223,0.25,137.46,137.41,10.47]
[1642539522424,3.16,137.46,137.41,10.47]
[1642539523025,0.25,137.46,137.41,10.47]
[1642539523225,2.91,137.45,137.41,10.47]
[1642539523423,11.1675,137.46,137.41,10.47]
[1642539523825,0.25,137.46,137.41,10.47]
[1642539524125,2.91,137.47,137.41,10.47]
[1642539524326,0.25,137.46,137.42,0.25]
[1642539524525,37.802,137.5,137.42,10.72]
[1642539524726,0.25,137.48,137.43,36.59179662]
[1642539524956,0.25,137.48,137.43,47.06179662]
[1642539526055,11.1648,137.49,137.43,10.47]
[1642539526255,2.908,137.48,137.42,2.91]
[1642539526455,8.908,137.48,137.42,2.91]
[1642539526655,0.25,137.47,137.42,2.91]
[1642539526855,2.91,137.46,137.42,2.91]
[1642539527058,16.9218,137.45,137.42,2.91]
[1642539527256,8.97439994,137.44,137.38,42.94980945]
[1642539527657,0.25,137.43,137.39,10.47]
[1642539528260,11.1698,137.43,137.39,10.47]
[1642539529765,0.25,137.43,137.39,10.47]
[1642539530364,0.25,137.44,137.39,10.47]
[1642539531166,6.25,137.44,137.39,10.47]
[1642539532466,11.1691,137.44,137.39,10.47]
[1642539532666,2.91,137.45,137.4,0.25]
[1642539532866,23.2879,137.46,137.4,0.25]
[1642539535876,6.06439994,137.41,137.39,10.47]
[1642539536475,16.98579994,137.41,137.39,10.47]
[1642539539075,0.25,137.4,137.39,10.47]
[1642539540274,0.25,137.4,137.36,10.47]
[1642539540476,11.1719,137.4,137.36,10.47]
[1642539540675,2.911,137.39,137.36,10.47]
[1642539541077,0.25,137.38,137.36,10.47]
[1642539541275,0.25,137.38,137.33,10.47]
[1642539541576,0.25,137.38,137.34,42.49191208]
[1642539541775,0.25,137.38,137.35,10.47]
[1642539542183,0.25,137.4,137.35,10.47]
[1642539542379,2.911,137.39,137.35,10.47]
[1642539542577,10.9235,137.38,137.35,10.47]
[1642539542775,11.1735,137.38,137.35,10.47]
[1642539542977,6.0,137.37,137.35,10.47]
[1642539543176,0.25,137.36,137.35,10.47]
[1642539543604,11.1754,137.36,137.35,10.47]
[1642539543976,0.25,137.36,137.35,10.47]
[1642539544380,6.31439994,137.36,137.35,10.47]
[1642539545778,6.06439994,137.36,137.35,51.31269088]
[1642539545979,2.912,137.42,137.35,51.31269088]
[1642539547479,10.9225,137.41,137.35,51.31269088]
[1642539548282,0.25,137.4,137.35,51.31269088]
[1642539548482,0.25,137.4,137.35,10.47]
[1642539549496,0.25,137.4,137.35,55.14243545]
[1642539549681,0.25,137.41,137.35,55.14243545]
[1642539549885,6.0,137.41,137.35,55.14243545]
[1642539550086,2.912,137.42,137.36,0.25]
[1642539550282,24.7058,137.43,137.37,10.47]
[1642539550582,35.8196,137.45,137.38,2.911]
[1642539550782,35.8196,137.45,137.39,10.47]
[1642539550983,35.8196,137.45,137.4,39.23195428]
[1642539551607,0.25,137.44,137.4,39.23195428]
[1642539551808,0.25,137.44,137.39,10.47]
[1642539552108,35.8196,137.45,137.39,10.47]
[1642539552508,24.8996,137.45,137.39,10.47]
[1642539552712,24.8996,137.45,137.4,42.50900988]
[1642539554115,24.8996,137.45,137.39,10.47]
[1642539554312,2.91,137.44,137.39,10.47]
[1642539554517,3.16,137.44,137.39,10.47]
[1642539554912,6.0,137.43,137.39,10.47]
[1642539555112,2.91,137.42,137.38,2.91]
[1642539555315,3.16,137.42,137.38,2.91]
[1642539556415,0.25,137.42,137.37,49.43919545]
[1642539557414,2.911,137.43,137.38,10.72]
[1642539557615,2.05248481,137.44,137.38,21.6384]
[1642539557814,0.25,137.43,137.38,21.6384]
[1642539558415,0.25,137.43,137.38,24.5494]
[1642539558617,2.05248481,137.45,137.38,24.5494]
[1642539559316,2.05248481,137.47,137.39,6.0]
[1642539559518,2.05248481,137.47,137.42,10.9149]
[1642539559715,0.25,137.46,137.42,10.9149]
[1642539560720,3.16,137.47,137.42,10.9149]
[1642539562019,3.16,137.47,137.41,47.94179818]
[1642539562421,3.16,137.47,137.4,10.47]
[1642539562722,6.0,137.46,137.4,10.47]
[1642539562921,2.91,137.45,137.4,10.47]
[1642539563120,3.16,137.45,137.4,10.47]
[1642539563340,3.16,137.45,137.4,50.73769604]
[1642539564122,3.16,137.45,137.4,10.47]
[1642539564522,14.0798,137.45,137.4,10.47]
[1642539564923,6.0,137.44,137.4,10.47]
[1642539565122,2.91,137.43,137.39,2.91]
[1642539565322,3.16,137.43,137.39,2.91]
[1642539565523,6.0,137.42,137.39,2.91]
[1642539565723,9.22539994,137.41,137.39,2.91]
[1642539565923,6.31439994,137.41,137.39,2.91]
[1642539566724,9.22539994,137.41,137.39,2.91]
[1642539567224,6.31439994,137.41,137.39,2.91]
[1642539567428,6.06439994,137.41,137.39,2.91]
[1642539567824,2.05248481,137.44,137.4,37.98829676]
[1642539568025,2.05248481,137.44,137.4,38.23829676]
[1642539568524,2.05248481,137.44,137.4,37.98829676]
[1642539568725,0.25,137.43,137.4,37.98829676]
[1642539569131,27.3274,137.45,137.4,37.98829676]
[1642539569325,24.4174,137.45,137.4,37.98829676]
[1642539570827,0.25,137.44,137.4,37.98829676]
[1642539571427,0.25,137.44,137.4,48.45829676]
[1642539572031,0.25,137.45,137.4,48.45829676]
[1642539572626,0.25,137.45,137.4,59.37509676]
[1642539572827,2.05248481,137.47,137.41,73.23]
[1642539573228,2.05248481,137.47,137.42,10.47]
[1642539573627,2.05248481,137.47,137.43,3.16]
[1642539573829,2.05248481,137.47,137.44,10.47]
[1642539574028,2.05248481,137.49,137.45,48.04730887]
[1642539574231,2.05248481,137.49,137.46,10.47]
[1642539575330,4.95807221,137.51,137.47,3.158]
[1642539575530,4.95807221,137.51,137.48,10.47]
[1642539575730,4.95807221,137.51,137.49,3.158]
[1642539575931,4.95807221,137.51,137.5,39.74170494]
[1642539576330,2.908,137.51,137.5,39.74170494]
[1642539576734,195.47379342,137.55,137.5,39.74170494]
[1642539576930,6.25,137.54,137.5,39.74170494]
[1642539577168,0.25,137.54,137.5,39.74170494]
[1642539578130,0.25,137.54,137.48,10.47]
[1642539578332,2.908,137.53,137.48,10.47]
[1642539578531,6.0,137.52,137.48,10.47]
[1642539578732,6.25,137.52,137.48,10.47]
[1642539579031,2.908,137.53,137.49,0.25]
[1642539579231,2.908,137.55,137.49,0.25]
[1642539579433,2.908,137.55,137.49,5.857]
[1642539579632,6.25,137.54,137.49,5.857]
[1642539579833,6.25,137.54,137.5,48.40560523]
[1642539580131,6.25,137.54,137.5,58.87560523]
[1642539580580,0.25,137.54,137.5,58.87560523]
[1642539581332,0.25,137.54,137.5,10.47]
[1642539581532,0.25,137.54,137.5,9.97]
[1642539582333,0.25,137.54,137.51,35.83582943]
[1642539583755,6.06439994,137.53,137.51,35.83582943]
[1642539584337,3.03219997,137.53,137.51,35.83582943]
[1642539584541,0.25,137.54,137.51,35.83582943]
[1642539584875,0.25,137.54,137.51,46.30582943]
[1642539585039,0.25,137.54,137.51,53.13182943]
[1642539585238,0.25,137.56,137.51,53.13182943]
[1642539586038,6.25,137.56,137.51,53.13182943]
[1642539586250,6.25,137.56,137.51,46.30582943]
[1642539586450,6.25,137.56,137.51,57.21402943]
[1642539592155,6.25,137.56,137.51,10.47]
[1642539592394,2.908,137.55,137.51,10.47]
[1642539592592,2.908,137.55,137.48,10.47]
[1642539592787,6.25,137.54,137.48,10.47]
[1642539592988,2.908,137.53,137.48,10.47]
[1642539593189,0.25,137.52,137.49,39.80695355]
[1642539593391,6.06439994,137.51,137.49,39.80695355]
[1642539593590,10.9126,137.53,137.49,39.80695355]
[1642539593814,27.5596,137.55,137.5,10.72]
[1642539593991,72.98,137.6,137.51,6.0]
[1642539593992,2.908,137.6,137.51,6.0]
[1642539594190,2.908,137.6,137.52,10.72]
[1642539594390,15.01865273,137.61,137.52,57.17131784]
[1642539594894,26.4652,137.62,137.52,57.17131784]
[1642539595294,26.4652,137.62,137.53,10.9061]
[1642539595490,23.5582,137.62,137.54,10.47]
[1642539595690,134.09853415,137.64,137.54,10.72]
[1642539595912,129.98628142,137.64,137.54,10.72]
[1642539596293,129.98628142,137.64,137.56,10.9037]
[1642539596494,127.07928142,137.64,137.57,13.376]
[1642539596694,127.07928142,137.64,137.58,41.85213837]
[1642539596898,103.70678142,137.64,137.59,10.47]
[1642539597095,2.906,137.66,137.59,10.47]
[1642539597096,0.36500896,137.66,137.6,32.0]
[1642539597293,4.11225273,137.67,137.61,13.626]
[1642539597497,6.12922725,137.7,137.62,10.8986]
[1642539597700,6.12922725,137.7,137.63,13.374]
[1642539597899,0.03791311,137.7,137.64,36.81079538]
[1642539598102,0.03791311,137.7,137.65,10.47]
[1642539598299,0.03791311,137.7,137.66,0.25]
[1642539598501,0.03791311,137.7,137.67,21.3654]
[1642539598699,0.03791311,137.7,137.68,0.25]
[1642539599499,0.03791311,137.7,137.68,41.381406]
[1642539599703,0.03791311,137.7,137.67,21.3654]
[1642539599904,6.06439994,137.69,137.67,10.47]
[1642539600135,6.06439994,137.69,137.63,10.47]
[1642539600136,2.904,137.68,137.63,10.47]
[1642539600299,2.904,137.69,137.63,10.47]
[1642539600498,0.03791311,137.7,137.64,2.904]
[1642539600700,0.03791311,137.7,137.65,50.73246578]
[1642539600701,2.94191311,137.7,137.65,50.73246578]
[1642539600898,0.03791311,137.7,137.65,10.47]
[1642539601099,0.25,137.69,137.65,10.47]
[1642539601301,2.904,137.68,137.65,10.47]
[1642539601501,6.06439994,137.67,137.65,10.47]
[1642539601810,2.904,137.69,137.66,38.2939145]
[1642539602003,0.03791311,137.7,137.67,10.47]
[1642539602603,6.06439994,137.69,137.67,10.47]
[1642539602802,2.904,137.68,137.67,10.47]
[1642539603002,8.96839994,137.69,137.67,10.47]
[1642539603203,37.47774842,137.68,137.67,10.47]
[1642539603635,43.47774842,137.68,137.67,10.47]
[1642539603804,54.37844842,137.68,137.63,10.47]
[1642539604003,8.904,137.67,137.63,10.47]
[1642539604205,6.0,137.67,137.63,10.47]
[1642539604605,37.47774842,137.68,137.63,10.47]
[1642539604803,37.22774842,137.68,137.63,10.47]
[1642539605503,2.904,137.69,137.63,10.47]
[1642539605703,2.904,137.69,137.64,0.25]
[1642539605904,2.904,137.69,137.65,10.47]
[1642539606103,0.25,137.68,137.65,10.47]
[1642539606605,41.43303258,137.68,137.65,10.47]
[1642539607007,6.0,137.67,137.65,10.47]
[1642539607205,6.18619997,137.66,137.61,10.47]
[1642539607617,6.0,137.65,137.61,10.47]
[1642539608015,2.906,137.67,137.62,44.06656299]
[1642539608215,2.906,137.69,137.63,10.47]
[1642539608414,0.03791311,137.7,137.63,10.47]
[1642539608716,6.0,137.68,137.63,10.47]
[1642539609115,2.904,137.67,137.63,21.3686]
[1642539609318,42.4259211,137.67,137.63,21.3686]
[1642539609519,6.0,137.68,137.63,21.3686]
[1642539609719,6.0,137.68,137.63,10.47]
[1642539610321,6.0,137.68,137.64,0.25]
[1642539610618,2.94191311,137.7,137.64,10.72]
[1642539610820,0.03791311,137.7,137.64,10.47]
[1642539611246,0.03791311,137.7,137.65,0.25]
[1642539611443,0.03791311,137.7,137.66,10.47]
[1642539611641,0.03791311,137.7,137.66,21.3655]
[1642539611846,0.03791311,137.7,137.66,10.47]
[1642539612057,2.94191311,137.7,137.66,9.97]
[1642539612542,6.0,137.69,137.66,9.97]
[1642539612744,67.16142916,137.68,137.66,9.97]
[1642539613046,67.41142916,137.68,137.66,9.97]
[1642539613243,20.11979994,137.68,137.66,9.97]
[1642539614245,6.06439994,137.68,137.66,9.97]
[1642539615649,2.904,137.69,137.66,12.874]
[1642539616950,0.03791311,137.7,137.66,9.97]
[1642539617146,0.03791311,137.7,137.67,0.25]
[1642539617446,0.03791311,137.7,137.68,13.374]
[1642539617846,0.03791311,137.7,137.69,43.37996353]
[1642539618048,0.03791311,137.7,137.69,54.27316353]
[1642539618248,0.03791311,137.7,137.69,64.74316353]
[1642539620263,0.00791311,137.7,137.69,72.71716353]
[1642539620624,0.00791311,137.7,137.69,145.69716353]
[1642539620767,0.00791311,137.7,137.69,148.60116353]
[1642539621156,0.00791311,137.7,137.69,154.60116353]
[1642539621358,0.07962902,137.71,137.69,154.60116353]
[1642539621558,0.07962902,137.71,137.7,32.904]
[1642539621757,0.07962902,137.71,137.7,24.5121]
[1642539621957,0.07962902,137.71,137.7,30.5121]
[1642539622400,0.07962902,137.71,137.7,30.2621]
[1642539622758,0.07962902,137.71,137.7,24.2621]
[1642539623963,0.07962902,137.71,137.7,21.3581]
[1642539624165,0.07962902,137.71,137.7,21.6081]
[1642539624664,0.07962902,137.71,137.7,21.3581]
[1642539625878,0.07962902,137.71,137.7,10.47]
[1642539626066,6.14402896,137.71,137.7,10.47]
[1642539628269,6.14402896,137.71,137.63,2.904]
[1642539628473,6.14402896,137.71,137.67,10.47]
[1642539628670,6.14402896,137.71,137.64,10.8965]
[1642539628869,2.904,137.7,137.65,10.47]
[1642539629070,42.51359778,137.7,137.65,10.47]
[1642539629770,2.904,137.7,137.65,21.3664]
[1642539631000,0.07962902,137.71,137.65,21.3664]
[1642539631200,0.07962902,137.71,137.65,94.3464]
[1642539631398,0.07962902,137.71,137.65,21.3664]
[1642539633101,0.07962902,137.71,137.65,10.47]
[1642539633503,36.22558866,137.7,137.65,10.47]
[1642539634104,3.154,137.69,137.65,10.47]
[1642539634904,10.8999,137.68,137.65,10.47]
[1642539635103,38.0033624,137.67,137.65,10.47]
[1642539635305,2.904,137.66,137.65,10.47]
[1642539636108,6.06439994,137.67,137.65,10.47]
[1642539638208,16.96489994,137.67,137.65,10.47]
[1642539638411,40.64901671,137.66,137.65,10.47]
[1642539638611,49.49201671,137.66,137.59,2.904]
[1642539638912,2.906,137.65,137.6,10.47]
[1642539639109,2.906,137.65,137.59,10.47]
[1642539639308,0.25,137.64,137.59,10.47]
[1642539639513,13.8103,137.63,137.59,10.47]
[1642539639718,44.4801787,137.62,137.59,10.47]
[1642539639908,6.06439994,137.61,137.59,10.47]
[1642539640713,16.96969994,137.61,137.59,10.47]
[1642539640912,6.06439994,137.61,137.59,10.47]
[1642539641512,3.156,137.6,137.56,10.47]
[1642539641713,2.906,137.6,137.56,10.47]
[1642539641911,44.2301787,137.62,137.56,10.47]
[1642539642312,2.907,137.63,137.56,10.47]
[1642539642713,2.907,137.69,137.57,2.907]
[1642539642916,10.9013,137.66,137.58,10.47]
[1642539643113,8.906,137.65,137.58,10.47]
[1642539643315,35.53175856,137.64,137.59,49.45725005]
[1642539643516,6.0,137.63,137.59,10.47]
[1642539644216,38.43775856,137.64,137.59,10.47]
[1642539644416,35.53175856,137.64,137.59,10.47]
[1642539644616,38.43775856,137.64,137.59,10.47]
[1642539645240,2.906,137.67,137.59,10.47]
[1642539645418,13.8071,137.67,137.59,21.3711]
[1642539645620,6.0,137.66,137.6,0.25]
[1642539645819,6.0,137.66,137.61,13.376]
[1642539646322,6.0,137.66,137.62,39.99440735]
[1642539646517,6.0,137.67,137.63,10.47]
[1642539646719,19.8047,137.67,137.63,10.47]
[1642539647121,13.8047,137.67,137.63,10.47]
[1642539647524,0.25,137.66,137.63,10.47]
[1642539647722,6.06439994,137.65,137.63,10.47]
[1642539647924,16.96709994,137.65,137.63,10.47]
[1642539648322,43.94150425,137.64,137.63,10.47]
[1642539649456,54.84570425,137.64,137.63,10.47]
[1642539650163,60.84570425,137.64,137.63,10.47]
[1642539650756,16.9042,137.64,137.63,10.47]
[1642539652657,17.1542,137.64,137.63,10.47]
[1642539652862,17.1542,137.64,137.58,2.904]
[1642539653158,48.77697726,137.63,137.59,10.47]
[1642539653358,13.8119,137.62,137.58,10.47]
[1642539653558,13.8119,137.62,137.56,45.3855086]
[1642539653758,0.25,137.61,137.56,10.47]
[1642539654358,10.9072,137.6,137.56,10.47]
[1642539654758,10.9072,137.6,137.56,56.66385047]
[1642539655161,55.64964281,137.6,137.56,10.47]
[1642539655460,2.907,137.59,137.56,10.47]
[1642539655659,13.94129997,137.58,137.52,10.47]
[1642539656260,42.09344078,137.57,137.52,47.69308381]
[1642539656659,42.09344078,137.57,137.52,10.47]
[1642539656860,11.1592,137.56,137.52,10.47]
[1642539657065,20.0672,137.56,137.52,10.47]
[1642539661166,20.0672,137.56,137.47,167.52671955]
[1642539661167,20.0672,137.56,137.49,10.47]
[1642539662369,20.0672,137.56,137.49,52.8323126]
[1642539662968,14.0672,137.56,137.49,52.8323126]
[1642539664174,14.0672,137.56,137.49,10.47]
[1642539665070,14.0672,137.56,137.49,50.57107449]
[1642539665472,6.0,137.55,137.5,0.25]
[1642539665671,6.0,137.55,137.49,50.57107449]
[1642539665872,16.9101,137.55,137.49,50.57107449]
[1642539666071,16.9101,137.55,137.5,0.25]
[1642539666871,10.9101,137.55,137.5,0.25]
[1642539667272,10.9101,137.55,137.49,50.57107449]
[1642539667573,45.61157945,137.54,137.5,2.908]
[1642539667772,45.86157945,137.54,137.49,53.47907449]
[1642539668574,56.77227945,137.54,137.49,53.47907449]
[1642539668775,56.77227945,137.54,137.49,50.57107449]
[1642539668974,49.2879,137.58,137.49,50.57107449]
[1642539669176,49.2879,137.58,137.5,3.158]
[1642539669177,6.25,137.57,137.5,3.158]
[1642539669577,6.0,137.57,137.5,3.158]
[1642539669975,50.00490895,137.57,137.5,3.158]
[1642539670376,10.9099,137.55,137.5,2.908]
[1642539670575,42.46091324,137.54,137.49,10.47]
[1642539670776,42.71091324,137.54,137.49,10.47]
[1642539671380,53.62181324,137.54,137.49,10.47]
[1642539673780,2.908,137.53,137.49,10.47]
[1642539674006,19.8203,137.53,137.49,10.47]
[1642539674181,13.8203,137.53,137.49,10.47]
[1642539674389,42.71091324,137.54,137.49,10.47]
[1642539675611,2.908,137.53,137.49,10.47]
[1642539675807,11.1632,137.52,137.49,10.47]
[1642539676008,44.50334599,137.51,137.49,10.47]
[1642539676207,0.25,137.5,137.49,10.47]
[1642539677214,11.164,137.5,137.49,10.47]
[1642539677408,11.164,137.5,137.43,36.7361]
[1642539677608,11.164,137.5,137.44,10.47]
[1642539678009,2.908,137.49,137.44,10.47]
[1642539678277,52.15958149,137.48,137.44,10.47]
[1642539680518,11.1658,137.48,137.44,10.47]
[1642539680815,2.908,137.49,137.44,21.3836]
[1642539681015,23.3514,137.51,137.44,21.3836]
[1642539681213,2.908,137.56,137.45,0.25]
[1642539681514,40.99247437,137.54,137.47,39.49671738]
[1642539681712,2.908,137.53,137.47,49.96671738]
[1642539681913,19.8197,137.53,137.47,60.87811738]
[1642539682318,16.9117,137.53,137.47,60.87811738]
[1642539682512,6.0,137.53,137.47,60.87811738]
[1642539683514,0.25,137.52,137.47,60.87811738]
[1642539684919,0.25,137.52,137.48,6.0]
[1642539685216,0.25,137.52,137.47,60.87811738]
[1642539685416,45.85348675,137.52,137.47,60.87811738]
[1642539686016,0.25,137.52,137.47,60.87811738]
[1642539687818,0.25,137.53,137.47,60.87811738]
[1642539689019,24.3378,137.55,137.47,60.87811738]
[1642539689219,10.9097,137.56,137.48,3.158]
[1642539689420,10.9097,137.56,137.5,10.9087]
[1642539689620,23.4812,137.57,137.51,10.47]
[1642539690019,23.4812,137.57,137.52,41.28172113]